fUSD/lending_fUSD_20250206
["ID","MTS","AMOUNT","RATE_DAILY","PERIOD"]
[351946756,1738857045952,-1000.0,0.00019178,2]
[351946757,1738857045962,-1000.0,0.00019178,2]
[351946758,1738857045972,-1000.0,0.00019178,2]
[351946759,1738857045982,-3231.09,0.00019178,2]
[351946760,1738857045991,-500.0,0.00019183,2]
[351946761,1738857046002,-205.15103453,0.000192,2]
[351946763,1738857046012,-366.0,0.000192,2]
[351946765,1738857046021,-746.0,0.000192,2]
[351946767,1738857046030,-231.0,0.000192,2]
[351946770,1738857046040,-202.01298256,0.000192,3]
[351946774,1738857046050,-150.0,0.000192,2]
[351946776,1738857046060,-3271.95285314,0.000192,2]
[351946778,1738857046070,-209.26195142,0.00019215,2]
[351946780,1738857046080,-209.26195142,0.00019215,2]
[351946783,1738857046090,-209.26195142,0.00019215,2]
[351946786,1738857046100,-209.26195142,0.00019215,2]
[351946789,1738857046111,-209.26195142,0.00019215,2]
[351946791,1738857046121,-209.26195142,0.00019215,2]
[351946793,1738857046130,-209.26195142,0.00019215,2]
[351946795,1738857046140,-209.26195142,0.00019215,2]
[351946796,1738857046153,-209.26195142,0.00019215,2]
[351946797,1738857046162,-209.26195142,0.00019215,2]
[351946798,1738857046172,-209.26195142,0.00019215,2]
[351946799,1738857046182,-209.26195142,0.00019215,2]
[351946800,1738857046191,-209.26195142,0.00019215,2]
[351946801,1738857046202,-209.26195142,0.00019215,2]
[351946802,1738857046211,-209.26195142,0.00019215,2]
[351946803,1738857046221,-209.26195142,0.00019215,2]
[351946804,1738857046232,-209.26195142,0.00019215,2]
[351946805,1738857046242,-209.26195142,0.00019215,2]
[351946806,1738857046252,-209.26195142,0.00019215,2]
[351946807,1738857046262,-209.26,0.00019215,2]
[351946808,1738857046272,-237.19167895,0.00019215,2]
[351946809,1738857046282,-237.19167895,0.00019215,2]
[351946810,1738857046292,-237.19167895,0.00019215,2]
[351946811,1738857046301,-237.19167895,0.00019215,2]
[351946812,1738857046311,-237.19167895,0.00019215,2]
[351946813,1738857046322,-237.19167895,0.00019215,2]
[351946814,1738857046331,-237.19167895,0.00019215,2]
[351946815,1738857046341,-237.19167895,0.00019215,2]
[351946816,1738857046351,-237.19167895,0.00019215,2]
[351946817,1738857046360,-237.19167895,0.00019215,2]
[351946818,1738857046370,-237.19167895,0.00019215,2]
[351946819,1738857046380,-237.19167895,0.00019215,2]
[351946820,1738857046390,-237.19167895,0.00019215,2]
[351946821,1738857046403,-237.19167895,0.00019215,2]
[351946822,1738857046413,-237.19167895,0.00019215,2]
[351946823,1738857046423,-237.19167895,0.00019215,2]
[351946824,1738857046433,-237.19167895,0.00019215,2]
[351946825,1738857046443,-237.19167895,0.00019215,2]
[351946826,1738857046452,-237.19167895,0.00019215,2]
[351946827,1738857046462,-237.19,0.00019215,2]
[351946828,1738857046472,-316.56950559,0.00019215,2]
[351946829,1738857046482,-316.56950559,0.00019215,2]
[351946830,1738857046492,-316.56950559,0.00019215,2]
[351946831,1738857046502,-316.56950559,0.00019215,2]
[351946832,1738857046512,-316.56950559,0.00019215,2]
[351946833,1738857046522,-316.56950559,0.00019215,2]
[351946834,1738857046532,-316.56950559,0.00019215,2]
[351946835,1738857046543,-316.56950559,0.00019215,2]
[351946836,1738857046554,-316.56950559,0.00019215,2]
[351946837,1738857046563,-316.56950559,0.00019215,2]
[351946839,1738857046573,-316.56950559,0.00019215,2]
[351946841,1738857046583,-316.56950559,0.00019215,2]
[351946843,1738857046593,-316.56950559,0.00019215,2]
[351946845,1738857046603,-316.56950559,0.00019215,2]
[351946847,1738857046613,-316.56950559,0.00019215,2]
[351946849,1738857046623,-316.56950559,0.00019215,2]
[351946851,1738857046633,-316.56950559,0.00019215,2]
[351946853,1738857046642,-316.56950559,0.00019215,2]
[351946855,1738857046659,-316.56950559,0.00019215,2]
[351946857,1738857046669,-316.56,0.00019215,2]
[351946859,1738857046679,-424.71890757,0.00019226,3]
[351946861,1738857046688,-7447.3070628,0.00019226,2]
[351946862,1738857046698,-2000.0,0.00019228,3]
[351946864,1738857046708,-2000.0,0.00019228,2]
[351946865,1738857046718,-2338.2685534,0.00019228,2]
[351946866,1738857046728,-150.0,0.00019239,2]
[351946867,1738857046737,-416.83,0.00019242,30]
[351946868,1738857046754,-150.0,0.0001925,2]
[351946869,1738857046765,-655.0,0.00019283,2]
[351946870,1738857046775,-2308.3894199,0.00019287,2]
[351946871,1738857046790,-2278.5102864,0.00019287,2]
[351946873,1738857046800,-7414.3126644,0.00019287,2]
[351946875,1738857046810,-7381.318266,0.00019287,2]
[351946878,1738857046819,-500.0,0.00019289,2]
[351946879,1738857046830,-500.0,0.00019289,2]
[351946881,1738857046841,-1431.2488972,0.00019289,2]
[351946883,1738857046850,-1042.3687208,0.00019289,2]
[351946884,1738857046859,-263.9652021,0.00019289,2]
[351946886,1738857046869,-450.4125003,0.00019289,2]
[351946888,1738857046880,-500.0,0.00019296,3]
[351946889,1738857046890,-500.0,0.00019296,3]
[351946891,1738857046903,-500.0,0.00019296,3]
[351946893,1738857046912,-500.0,0.00019296,3]
[351946895,1738857046922,-1276.91,0.00019296,3]
[351946897,1738857046932,-1276.91,0.00019296,3]
[351946898,1738857046942,-1276.91,0.00019296,3]
[351946900,1738857046952,-1276.91,0.00019296,3]
[351946901,1738857046962,-999.0,0.00019296,2]
[351946902,1738857046972,-500.0,0.00019297,3]
[351946903,1738857046982,-543.93,0.00019297,3]
[351946904,1738857046991,-500.0,0.00019297,3]
[351946905,1738857047001,-543.93,0.00019297,3]
[351946906,1738857047010,-500.0,0.00019297,3]
[351946907,1738857047020,-1276.91,0.00019297,3]
[351946908,1738857047030,-339.90811709,0.00019298,2]
[351946909,1738857047039,-806562.34596898,0.00019298,2]
[351946910,1738857048317,-150.0,0.00018072,2]
[351946911,1738857048327,-150.0,0.0001808,2]
[351946912,1738857048337,-150.0,0.00018247,2]
[351946913,1738857048348,-150.0,0.00018274,2]
[351946914,1738857048359,-150.0,0.00018281,2]
[351946915,1738857048370,-150.0,0.00018321,2]
[351946916,1738857048381,-150.0,0.00018358,2]
[351946917,1738857048391,-260.53813755,0.00018369,2]
[351946918,1738857048404,-150.0,0.00018444,2]
[351946919,1738857048417,-150.0,0.0001845,2]
[351946920,1738857048430,-150.0,0.00018505,2]
[351946921,1738857048441,-150.0,0.00018691,2]
[351946922,1738857048452,-150.0,0.00018741,2]
[351946923,1738857048464,-150.0,0.00019064,2]
[351946924,1738857048475,-150.0,0.00019081,2]
[351946925,1738857048486,-150.0,0.00019142,2]
[351946926,1738857048498,-150.0,0.00019144,2]
[351946927,1738857048510,-500.0,0.00019178,2]
[351946928,1738857048521,-500.0,0.00019178,2]
[351946929,1738857048531,-500.0,0.00019178,2]
[351946930,1738857048542,-500.0,0.00019178,2]
[351946931,1738857048740,-500.0,0.00019178,2]
[351946932,1738857048797,-1431.83,0.00019178,2]
[351946933,1738857048808,-260.53813755,0.000192,2]
[351946934,1738857048819,-150.0,0.00019239,2]
[351946935,1738857048832,-150.0,0.00019256,2]
[351946936,1738857048843,-2162.73329973,0.00019298,2]
[351946937,1738857048872,-664.19930728,0.00019298,2]
[351946938,1738857048884,-500.0,0.00019298,2]
[351946939,1738857048979,-393.37809332,0.00019298,2]
[351946940,1738857048992,-23769.34183561,0.00019298,2]
[351946941,1738857049005,-11094.12022788,0.00019298,2]
[351946942,1738857049017,-1836.21714772,0.00019298,2]
[351946943,1738857049027,-3268.03787196,0.00019298,2]
[351946944,1738857049040,-307.57877037,0.00019298,2]
[351946945,1738857049054,-607.97363732,0.00019298,2]
[351946946,1738857049067,-2857.97421704,0.00019298,2]
[351946947,1738857049080,-1850.9311271,0.00019298,2]
[351946948,1738857049093,-1155.0,0.00019298,2]
[351946949,1738857049105,-565.97761623,0.00019298,2]
[351946950,1738857049116,-1974.03291217,0.00019298,2]
[351946951,1738857049127,-19967.29063338,0.00019298,2]
[351946952,1738857049139,-6798.28134204,0.00019298,2]
[351946953,1738857049579,-585.27096738,0.00018913,2]
[351946954,1738857049591,-1494.72903262,0.00018913,2]
[351946955,1738857049601,-260.12668328,0.00019178,2]
[351946956,1738857049700,-239.87331672,0.00019178,2]
[351946957,1738857049710,-53611.06442613,0.00019298,2]
[351946958,1738857049720,-10262.2525138,0.00019298,5]
[351946959,1738857049729,-7166.81007861,0.00019298,2]
[351946960,1738857049741,-115628.40003259,0.00019298,2]
[351946961,1738857049753,-7639.19148093,0.00019298,2]
[351946962,1738857049765,-2735.48843605,0.00019298,2]
[351946963,1738857049777,-323.70093678,0.00019298,2]
[351946964,1738857049790,-1813.59008232,0.00019298,2]
[351946965,1738857049806,-1029.94312625,0.00019298,2]
[351946966,1738857049818,-293.92869024,0.00019298,2]
[351946967,1738857049831,-19457.24921325,0.00019298,2]
[351946968,1738857050983,-150.0,0.00018027,2]
[351946969,1738857050993,-500.0,0.00019178,2]
[351946970,1738857051003,-275.588536,0.00019178,2]
[351946971,1738857051015,-224.411464,0.00019178,2]
[351946972,1738857051026,-69.24861641,0.00019178,2]
[351946973,1738857051039,-430.75138359,0.00019178,2]
[351946974,1738857051049,-219.98763565,0.00019178,2]
[351946975,1738857051059,-193.81610607,0.00019178,2]
[351946976,1738857051070,-339.32455029,0.00019178,2]
[351946977,1738857051080,-439.77944183,0.00019178,2]
[351946978,1738857051092,-60.22055817,0.00019178,2]
[351946979,1738857051102,-500.0,0.00019178,2]
[351946980,1738857051112,-500.0,0.00019178,2]
[351946981,1738857051122,-368.49,0.00019178,2]
[351946982,1738857051131,-26358.1387716,0.00019298,2]
[351946983,1738857051144,-1155.28400369,0.00019298,2]
[351946984,1738857051157,-4636.85518,0.00019298,2]
[351946985,1738857051169,-24387.83025201,0.00019298,2]
[351946986,1738857051180,-14709.92116384,0.00019298,2]
[351946987,1738857051191,-5366.89384365,0.00019298,2]
[351946988,1738857051203,-585.15495558,0.00019298,2]
[351946989,1738857051214,-23903.90857462,0.00019298,2]
[351946990,1738857051224,-150.0,0.00019299,2]
[351946991,1738857051233,-500.0,0.00019299,3]
[351946992,1738857051243,-543.93,0.00019299,3]
[351946993,1738857051252,-500.0,0.00019299,3]
[351946994,1738857051262,-543.93,0.00019299,3]
[351946995,1738857051271,-500.0,0.00019299,3]
[351946996,1738857051281,-519.22574451,0.00019299,3]
[351946997,1738857051293,-24.70425549,0.00019299,3]
[351946998,1738857051302,-500.0,0.00019299,3]
[351946999,1738857051311,-543.93,0.00019299,3]
[351947000,1738857051321,-500.0,0.00019299,3]
[351947001,1738857051330,-364.86574456,0.00019299,3]
[351947002,1738857051342,-179.06425544,0.00019299,3]
[351947003,1738857051351,-500.0,0.00019299,3]
[351947004,1738857051360,-543.93,0.00019299,3]
[351947005,1738857051370,-500.0,0.00019299,3]
[351947006,1738857051380,-543.93,0.00019299,3]
[351947007,1738857051390,-500.0,0.00019299,3]
[351947008,1738857051399,-500.0,0.00019299,3]
[351947009,1738857051413,-543.93,0.00019299,3]
[351947010,1738857051423,-500.0,0.00019299,3]
[351947011,1738857051432,-543.93,0.00019299,3]
[351947012,1738857051442,-217.69253107,0.00019299,3]
[351947013,1738857051452,-543.93,0.00019299,3]
[351947014,1738857051462,-543.93,0.00019299,3]
[351947015,1738857051472,-543.93,0.00019299,3]
[351947016,1738857051482,-544.09534887,0.00019299,3]
[351947017,1738857051492,-500.0,0.00019299,2]
[351947018,1738857051502,-500.0,0.00019299,3]
[351947019,1738857051512,-238.179977,0.00019299,3]
[351947020,1738857051521,-1276.91,0.00019299,3]
[351947021,1738857051531,-1276.91,0.00019299,3]
[351947022,1738857051540,-1276.91,0.00019299,3]
[351947023,1738857051549,-1276.91,0.00019299,3]
[351947024,1738857051559,-1276.91,0.00019299,3]
[351947025,1738857051568,-1276.91,0.00019299,3]
[351947026,1738857051578,-1276.91,0.00019299,3]
[351947027,1738857051588,-1276.91,0.00019299,3]
[351947028,1738857051598,-1276.91,0.00019299,3]
[351947029,1738857051607,-1276.91,0.00019299,3]
[351947030,1738857051617,-1276.91,0.00019299,3]
[351947031,1738857051627,-1276.91,0.00019299,3]
[351947032,1738857051636,-1276.91,0.00019299,3]
[351947033,1738857051645,-1276.91,0.00019299,3]
[351947034,1738857051659,-1276.95,0.00019299,3]
[351947035,1738857051669,-379823.34934299,0.000193,30]
[351947036,1738857051681,-5440.0,0.000193,30]
[351947037,1738857051693,-271.7192311,0.000193,30]
[351947038,1738857051704,-1083.0,0.000193,30]
[351947039,1738857051716,-10159.68,0.000193,30]
[351947040,1738857051727,-615.47595679,0.000193,30]
[351947060,1738858232175,-1699.03275295,8.836e-05,2]
[351947061,1738858232311,-400.0,8.836e-05,2]
[351947062,1738858232333,-1116.28322968,8.836e-05,2]
[351947071,1738858237972,-384.68401737,8.836e-05,2]
[351947072,1738858237982,-500.0,8.851e-05,2]
[351947073,1738858237993,-152.686574,9.881e-05,2]
[351947074,1738858238003,-152.854263,9.881e-05,2]
[351947075,1738858238016,-187.351378,9.881e-05,2]
[351947076,1738858238027,-185.704749,9.881e-05,2]
[351947077,1738858238036,-187.351372,9.881e-05,2]
[351947078,1738858238046,-185.704747,9.881e-05,2]
[351947079,1738858238055,-187.351371,9.881e-05,2]
[351947080,1738858238065,-185.704746,9.881e-05,2]
[351947081,1738858238074,-187.351372,9.881e-05,2]
[351947082,1738858238084,-185.704747,9.881e-05,2]
[351947083,1738858238094,-185.704746,9.881e-05,2]
[351947084,1738858238103,-187.351371,9.881e-05,2]
[351947085,1738858238112,-187.351372,9.881e-05,2]
[351947086,1738858238121,-185.704746,9.881e-05,2]
[351947087,1738858238131,-171.43842863,9.881e-05,2]
[351947088,1738858238143,-15.91294237,9.881e-05,2]
[351947089,1738858238154,-155.94,0.00010137,2]
[351947090,1738858238164,-152.686574,0.00010155,2]
[351947091,1738858238173,-152.854263,0.00010155,2]
[351947092,1738858238183,-152.686574,0.00010292,2]
[351947093,1738858238193,-152.854263,0.00010429,2]
[351947094,1738858238202,-152.686574,0.00010566,2]
[351947095,1738858238212,-152.854263,0.00010703,2]
[351947096,1738858238223,-152.686574,0.0001084,2]
[351947097,1738858238235,-152.854263,0.00010977,2]
[351947099,1738858238245,-152.686574,0.00011114,2]
[351947101,1738858238254,-152.854263,0.00011114,2]
[351947103,1738858238266,-185.704746,0.00011114,2]
[351947105,1738858238275,-152.686574,0.00011251,2]
[351947107,1738858238285,-152.854263,0.00011388,2]
[351947109,1738858238297,-3146.25728963,0.000114,2]
[351947111,1738858238308,-337.5727751,0.000114,2]
[351947113,1738858238320,-3105.90750559,0.000114,2]
[351947115,1738858238329,-250.0,0.0001237,2]
[351947117,1738858238339,-3953.61712824,0.000125,2]
[351947119,1738858238350,-1688.92634296,0.000125,2]
[351947122,1738858238362,-819.40135929,0.000125,2]
[351947124,1738858238374,-8703.05516951,0.000125,2]
[351947126,1738858238383,-1148.48945826,0.000127,3]
[351947128,1738858238395,-4407.51054174,0.000127,3]
[351947130,1738858238405,-150.0,0.00012899,2]
[351947133,1738858238414,-379.68945826,0.000129,5]
[351947136,1738858238426,-2481.77378464,0.000129,5]
[351947303,1738858240037,-271.37002482,0.000129,5]
[351947305,1738858240050,-485.23034985,0.000129,5]
[351947312,1738858240103,-1937.93638243,0.000129,5]
[351947314,1738858240113,-861.29,0.00014356,2]
[351947315,1738858240122,-118.0702106,0.00015821,2]
[351947318,1738858240134,-187.0297894,0.00015821,2]
[351947320,1738858240143,-164.22,0.00016056,2]
[351947322,1738858240157,-250.0,0.0001619,2]
[351947324,1738858240167,-1000.0,0.0001626,2]
[351947326,1738858240177,-347.50378226,0.00016432,2]
[351947328,1738858240187,-861.29,0.0001662,2]
[351947330,1738858240198,-1526.404,0.00016781,2]
[351947332,1738858240208,-195.989,0.00016781,2]
[351947334,1738858240217,-375.14,0.00016953,30]
[351947336,1738858240230,-157.82,0.00016982,2]
[351947338,1738858240240,-5736.75327251,0.00017,2]
[351947340,1738858240249,-150.0,0.00017324,2]
[351947342,1738858240258,-150.0,0.00017905,2]
[351947344,1738858240271,-150.0,0.00018008,2]
[351947346,1738858240283,-150.0,0.00018047,2]
[351947349,1738858240293,-431.0255574,0.00018065,2]
[351947351,1738858240302,-390.82,0.00018082,2]
[351947352,1738858240311,-150.0,0.00018109,2]
[351947354,1738858240321,-150.0,0.00018209,2]
[351947356,1738858240330,-431.0255574,0.00018222,2]
[351947358,1738858240340,-150.0,0.00018226,2]
[351947360,1738858240349,-1000.0,0.00018235,2]
[351947362,1738858240359,-150.0,0.00018262,2]
[351947364,1738858240368,-1000.0,0.00018293,2]
[351947366,1738858240378,-500.0,0.000183,6]
[351947368,1738858240388,-1272.0,0.00018339,2]
[351947370,1738858240397,-2023.0,0.00018339,2]
[351947372,1738858240406,-150.0,0.00018339,2]
[351947374,1738858240416,-638.0,0.00018339,2]
[351947376,1738858240425,-568.0,0.00018339,2]
[351947378,1738858240435,-1826.0,0.00018339,2]
[351947380,1738858240445,-1264.0,0.00018339,2]
[351947382,1738858240454,-783.0,0.00018339,2]
[351947384,1738858240464,-907.0,0.00018339,2]
[351947386,1738858240473,-2953.0,0.00018339,2]
[351947388,1738858240483,-4023.0,0.00018339,2]
[351947391,1738858240492,-539.0,0.00018339,2]
[351947393,1738858240502,-3911.0,0.00018339,2]
[351947395,1738858240512,-150.0,0.00018339,2]
[351947397,1738858240526,-1007.0,0.00018339,2]
[351947399,1738858240535,-1000.0,0.000184,6]
[351947401,1738858240545,-150.0,0.00018403,2]
[351947403,1738858240554,-150.0,0.00018435,2]
[351947405,1738858240564,-150.0,0.00018468,2]
[351947407,1738858240573,-1600.0,0.000185,6]
[351947409,1738858240583,-150.0,0.0001854,2]
[351947411,1738858240593,-951.15,0.00018555,2]
[351947413,1738858240605,-373.93,0.00018555,2]
[351947415,1738858240615,-377.47,0.00018555,2]
[351947417,1738858240624,-372.61,0.00018555,2]
[351947419,1738858240633,-372.95,0.00018555,2]
[351947421,1738858240643,-150.0,0.0001856,2]
[351947423,1738858240652,-150.0,0.00018595,2]
[351947425,1738858240661,-431.0255574,0.00018595,2]
[351947427,1738858240669,-156.78,0.000186,2]
[351947429,1738858240677,-2100.0,0.000186,6]
[351947431,1738858240687,-150.0,0.00018691,2]
[351947433,1738858240696,-2600.0,0.000187,6]
[351947435,1738858240705,-150.0,0.00018727,2]
[351947437,1738858240714,-1000.0,0.00018749,2]
[351947438,1738858240724,-390.82,0.00018751,2]
[351947440,1738858240735,-150.93118586,0.00018789,2]
[351947443,1738858240744,-500.0,0.000188,6]
[351947444,1738858240754,-150.0,0.00018879,2]
[351947446,1738858240766,-861.29,0.00018884,2]
[351947449,1738858240775,-431.0255574,0.00018896,2]
[351947451,1738858240785,-500.0,0.000189,6]
[351947452,1738858240794,-150.0,0.00018907,2]
[351947455,1738858240804,-1241.5654865,0.00018913,2]
[351947457,1738858240813,-431.02555744,0.00018914,2]
[351947459,1738858240823,-150.0,0.00018951,2]
[351947460,1738858240832,-150.0,0.00018972,2]
[351947462,1738858240841,-150.0,0.00018982,2]
[351947464,1738858240850,-245.02,0.00019,3]
[351947466,1738858240859,-735.11,0.00019,3]
[351947468,1738858240868,-94773.53304615,0.0001901,2]
[351947470,1738858240878,-44816.21801312,0.00019011,2]
[351947472,1738858240887,-150.0,0.0001905,2]
[351947474,1738858240897,-1138.59853236,0.00019078,2]
[351947476,1738858240906,-3813.95818789,0.00019078,2]
[351947479,1738858240916,-157.82,0.00019105,2]
[351947481,1738858240925,-237.28,0.00019105,2]
[351947483,1738858240935,-237.28,0.00019105,2]
[351947485,1738858240945,-368951.77814391,0.00019115,2]
[351947487,1738858240954,-150.0,0.00019137,2]
[351947489,1738858240964,-500.0,0.00019145,2]
[351947491,1738858240974,-4113.87340642,0.00019168,2]
[351947493,1738858240983,-283.7316987,0.00019173,2]
[351947495,1738858240993,-152.35354993,0.00019173,2]
[351947496,1738858241002,-500.56523456,0.00019173,2]
[351947498,1738858241012,-167.08881958,0.00019173,2]
[351947501,1738858241026,-170.2078958,0.00019173,2]
[351947503,1738858241036,-473.14570756,0.00019173,2]
[351947505,1738858241047,-152.3096293,0.00019173,2]
[351947507,1738858241056,-151.19452434,0.00019173,2]
[351947509,1738858241066,-160.35167697,0.00019173,2]
[351947511,1738858241076,-160.21942373,0.00019173,2]
[351947513,1738858241086,-151.30964303,0.00019173,2]
[351947515,1738858241097,-500.0,0.00019173,2]
[351947517,1738858241107,-500.37378836,0.00019173,2]
[351947519,1738858241118,-159.48313488,0.00019173,2]
[351947521,1738858241128,-500.0,0.00019177,2]
[351947523,1738858241143,-500.0,0.00019177,2]
[351947525,1738858241159,-500.0,0.00019177,2]
[351947527,1738858241176,-500.0,0.00019177,2]
[351947529,1738858241186,-500.0,0.00019177,2]
[351947531,1738858241195,-500.0,0.00019177,2]
[351947533,1738858241205,-500.0,0.00019177,2]
[351947535,1738858241214,-500.0,0.00019177,2]
[351947537,1738858241223,-500.0,0.00019177,2]
[351947539,1738858241232,-500.0,0.00019177,2]
[351947541,1738858241242,-500.0,0.00019177,2]
[351947543,1738858241252,-500.0,0.00019177,2]
[351947545,1738858241261,-500.0,0.00019177,2]
[351947547,1738858241274,-500.0,0.00019177,2]
[351947549,1738858241283,-500.0,0.00019177,2]
[351947551,1738858241293,-500.0,0.00019177,2]
[351947552,1738858241302,-500.0,0.00019177,2]
[351947554,1738858241311,-500.0,0.00019177,2]
[351947557,1738858241321,-500.0,0.00019177,2]
[351947558,1738858241330,-500.0,0.00019177,2]
[351947560,1738858241339,-500.0,0.00019177,2]
[351947563,1738858241350,-500.0,0.00019177,2]
[351947565,1738858241359,-500.0,0.00019177,2]
[351947567,1738858241370,-471.34854803,0.00019177,2]
[351947569,1738858241379,-500.0,0.00019177,2]
[351947570,1738858241388,-500.0,0.00019177,2]
[351947572,1738858241398,-500.0,0.00019177,2]
[351947574,1738858241408,-500.0,0.00019177,2]
[351947576,1738858241418,-191.95422,0.00019177,2]
[351947578,1738858241428,-512.94387143,0.00019177,2]
[351947580,1738858241438,-500.84956122,0.00019178,2]
[351947582,1738858241448,-269.35536969,0.00019178,2]
[351947584,1738858241458,-500.0,0.00019178,2]
[351947587,1738858241469,-500.42787636,0.00019178,2]
[351947588,1738858241478,-501.54291805,0.00019178,2]
[351947591,1738858241489,-500.0,0.00019178,2]
[351947593,1738858241499,-505.55314967,0.00019178,2]
[351947594,1738858241509,-500.0,0.00019178,2]
[351947596,1738858241524,-500.0,0.00019178,2]
[351947598,1738858241535,-500.0,0.00019178,2]
[351947601,1738858241545,-500.0,0.00019178,2]
[351947603,1738858241555,-500.0,0.00019178,2]
[351947605,1738858241565,-500.0,0.00019178,2]
[351947607,1738858241575,-500.0,0.00019178,2]
[351947609,1738858241585,-300.0,0.00019178,2]
[351947611,1738858241595,-500.0,0.00019178,2]
[351947613,1738858241605,-500.0,0.00019178,2]
[351947615,1738858241615,-500.0,0.00019178,2]
[351947617,1738858241624,-292.64427279,0.00019178,2]
[351947619,1738858241634,-179.64489315,0.00019178,2]
[351947621,1738858241643,-500.0,0.00019178,2]
[351947623,1738858241653,-500.0,0.00019178,2]
[351947625,1738858241663,-500.0,0.00019178,2]
[351947627,1738858241672,-522.93,0.00019178,2]
[351947629,1738858241681,-500.0,0.00019178,2]
[351947630,1738858241691,-500.0,0.00019178,2]
[351947633,1738858241702,-500.0,0.00019178,2]
[351947635,1738858241711,-714.91,0.00019178,2]
[351947637,1738858241721,-532.5,0.00019178,2]
[351947638,1738858241731,-663.33,0.00019178,2]
[351947641,1738858241740,-500.0,0.00019178,2]
[351947643,1738858241750,-500.0,0.00019178,2]
[351947645,1738858241760,-500.0,0.00019178,2]
[351947647,1738858241773,-500.0,0.00019178,2]
[351947649,1738858241783,-500.0,0.00019178,2]
[351947651,1738858241792,-515.75,0.00019178,2]
[351947653,1738858241802,-500.0,0.00019178,2]
[351947655,1738858241812,-677.32,0.00019178,2]
[351947657,1738858241823,-500.0,0.00019178,2]
[351947659,1738858241832,-364.00504024,0.00019178,5]
[351947661,1738858241842,-642.79,0.00019178,2]
[351947663,1738858241851,-500.0,0.00019178,2]
[351947665,1738858241861,-500.0,0.00019178,2]
[351947667,1738858241871,-500.0,0.00019178,2]
[351947669,1738858241880,-500.0,0.00019178,2]
[351947671,1738858241890,-504.38,0.00019178,2]
[351947673,1738858241899,-500.0,0.00019178,2]
[351947675,1738858241909,-500.0,0.00019178,2]
[351947677,1738858241919,-500.0,0.00019178,2]
[351947679,1738858241929,-514.41276543,0.00019178,2]
[351947681,1738858241938,-500.0,0.00019178,2]
[351947683,1738858241949,-500.0,0.00019178,2]
[351947685,1738858241958,-500.0,0.00019178,2]
[351947687,1738858241968,-649.06,0.00019178,2]
[351947689,1738858241978,-500.0,0.00019178,2]
[351947691,1738858241988,-500.0,0.00019178,2]
[351947693,1738858241998,-500.0,0.00019178,2]
[351947695,1738858242008,-500.0,0.00019178,2]
[351947697,1738858242022,-500.0,0.00019178,2]
[351947699,1738858242031,-579.06,0.00019178,2]
[351947701,1738858242040,-500.0,0.00019178,2]
[351947703,1738858242051,-500.0,0.00019178,2]
[351947705,1738858242061,-500.0,0.00019178,2]
[351947707,1738858242071,-500.0,0.00019178,2]
[351947709,1738858242082,-500.0,0.00019178,2]
[351947711,1738858242092,-500.0,0.00019178,2]
[351947713,1738858242102,-500.0,0.00019178,2]
[351947715,1738858242112,-500.0,0.00019178,2]
[351947717,1738858242121,-500.0,0.00019178,2]
[351947719,1738858242131,-500.0,0.00019178,2]
[351947721,1738858242142,-500.0,0.00019178,2]
[351947723,1738858242154,-840.27,0.00019178,2]
[351947725,1738858242165,-500.0,0.00019178,2]
[351947727,1738858242174,-500.0,0.00019178,2]
[351947729,1738858242186,-500.0,0.00019178,2]
[351947731,1738858242195,-567.2162846,0.00019178,2]
[351947733,1738858242205,-500.0,0.00019178,2]